Cogmind - Beta 11.1 @@@ ROGUE MODE // 2022.05.08 @ 21:04:18 Player: Decinym Result: Destroyed by EX-DEC with AWS/EX-DEC Performance ------------- Evolutions (1) 500 Regions Visited (5) 1000 Robots Destroyed (41) 205 Value Destroyed (1004) 1004 Prototype IDs (34) 680 Alien Tech Used (0) 0 Bonus (139) 139 TOTAL SCORE: 3528 Bonus ------- Follower Combat Kills 100 Aligned with FarCom 300 Friendly Fire -261 Cogmind --------- Core Integrity 0/400 Matter 246/300 Energy 90/100 System Corruption 4% Temperature Cool (0) Movement Walking (170) Ox1 Location -9/Exiles Parts ------- > --- POWER (1) -------- (None) > --- PROPULSION (2) --- Potential Leg Potential Leg > --- UTILITY (4) ------ Improved Heat Sink Huge Storage Unit Improved Weapon Shielding > --- WEAPON (2) ------- Improved Assault Rifle 8R-AWN's Boregun > --- INVENTORY (25) --- Heavy Ion Engine Light Treads Improved Treads Improved Treads Heat Sink Large Storage Unit Experimental Sensor Array Chronowheel Light EM Pulse Cannon Improved Assault Rifle Improved Assault Rifle Improved Assault Rifle High-powered Shotgun Rocket Launcher Improved Grenade Launcher Datajack Longsword +1 Peak State ------------ > --- POWER ------------ Heavy Ion Engine > --- PROPULSION ------- Potential Leg Potential Leg > --- UTILITY ---------- Improved Heat Sink Huge Storage Unit Improved Weapon Shielding Hardlight Generator > --- WEAPON ----------- Improved Assault Rifle 8R-AWN's Boregun > --- INVENTORY -------- Heavy Ion Engine Light Treads Improved Treads Improved Treads Heat Sink Large Storage Unit Experimental Sensor Array Chronowheel Light EM Pulse Cannon Improved Assault Rifle Improved Assault Rifle Improved Assault Rifle High-powered Shotgun Rocket Launcher Improved Grenade Launcher Datajack Longsword +1 [Rating: 52] Favorites ----------- Power Heavy Ion Engine Engine Heavy Ion Engine Propulsion Light Treads Treads Light Treads Leg Potential Leg Utility Huge Storage Unit Device Improved Heat Sink Storage Huge Storage Unit Protection Light Armor Plating Weapon Improved Assault Rifle Energy Gun Small Laser Energy Cannon Advanced Beam Cannon Ballistic Gun Improved Assault Rifle Launcher Grenade Launcher Slashing Weapon Longsword +1 Special Melee Weapon Datajack Build | -11 -10 -10 -9 -9 -9 ------- Run | Scr Mat Min Mat Min Exi Slots Evolved 2 | . . . 2 . . Power . | . . . . . . Propulsion . | . . . . . . Utility 2 | . . . 2 . . Weapon . | . . . . . . Parts Attached 43 | . 8 6 12 3 14 Power 4 | . 2 1 1 . . Engine 4 | . 2 1 1 . . Core . | . . . . . . Reactor . | . . . . . . Propulsion 8 | . 2 . 3 1 2 Treads 6 | . 2 . 3 1 . Leg 2 | . . . . . 2 Wheel . | . . . . . . Hover . | . . . . . . Flight . | . . . . . . Utility 16 | . 3 1 6 1 5 Device 5 | . 2 1 1 . 1 Storage 2 | . 1 . 1 . . Processor . | . . . . . . Hackware . | . . . . . . Protection 9 | . . . 4 1 4 Artifact . | . . . . . . Weapon 15 | . 1 4 2 1 7 Energy Gun 3 | . 1 2 . . . Energy Cannon 1 | . . . 1 . . Ballistic Gun 6 | . . 1 1 1 3 Ballistic Cannon . | . . . . . . Launcher 3 | . . 1 . . 2 Special Weapon . | . . . . . . Impact Weapon . | . . . . . . Slashing Weapon 1 | . . . . . 1 Piercing Weapon . | . . . . . . Special Melee Weapon 1 | . . . . . 1 Unidentified Prototypes 3 | . . . 3 . . Parts Lost 15 | . 1 3 3 1 7 Power 1 | . . . . . 1 Propulsion 1 | . 1 . . . . Utility 9 | . . . 2 1 6 Weapon 4 | . . 3 1 . . Highest Loss Streak 3 | . 1 1 1 1 3 To Critical Strikes . | . . . . . . Average Slot Usage (%) 98 | . 97 94 99 99 99 Engine 11 | . 14 14 11 11 10 Treads 18 | . 16 28 21 22 5 Leg 4 | . 10 . . . 16 Device 11 | . 13 14 11 11 12 Storage 11 | . 14 14 11 11 11 Protection 16 | . . . 22 21 20 Energy Gun 3 | . 14 12 2 . . Ballistic Gun 17 | . 14 8 14 22 19 Naked Turns . | . . . . . . Heaviest Build 105 | 12 28 32 104 103 105 Greatest Support 60 | 20 40 40 43 46 60 Greatest Overweight (x) 3 | . 1 . 2 2 3 Average Overweight (x) 1 | . . . 1 2 1 Largest Inventory Capacity 25 | . 15 15 25 25 25 Average Capacity 22 | . 9 15 24 25 25 Most Carried 25 | . 10 15 25 25 25 Average Carried 20 | . 7 12 20 24 22 Final Capacity 25 | 8 15 15 25 25 25 Final Carried 25 | 6 10 14 25 24 17 Class Distribution -------------------- 100% | Mutant Dominant Class ---------------- Mutant | -10/Materials Mutant | -10/Mines Mutant | -9/Materials Mutant | -9/Mines Mutant | -9/Exiles Resources | -11 -10 -10 -9 -9 -9 ----------- Run | Scr Mat Min Mat Min Exi Matter Collected 1247 | 200 91 76 324 193 363 Remotely . | . . . . . . Salvage Created 1719 | . 174 157 922 300 166 Parts 101 | . 10 21 51 11 8 Haulers Intercepted 4 | . . . 4 . . Recyclers Shooed 7 | . . . 6 1 . Parts Field Recycled . | . . . . . . Retrieved Matter . | . . . . . . Parts Self-Destructed . | . . . . . . Prevented . | . . . . . . Kills | -11 -10 -10 -9 -9 -9 ------- Run | Scr Mat Min Mat Min Exi Combat Hostiles Destroyed 33 | . 4 3 11 10 5 Melee 1 | . . . . . 1 Guns 27 | . 4 2 9 10 2 Cannons 2 | . . . 2 . . AOE 3 | . . 1 . . 2 Classes Destroyed 13 | . 1 4 4 2 2 Builder 1 | . . 1 . . . Tunneler 3 | . . 2 1 . . Hauler 4 | . . . 4 . . Recycler 3 | . . . 2 1 . Operator 1 | . . 1 . . . Turret 1 | . . . . . 1 Watcher 2 | . . . 2 . . Swarmer 2 | . . 1 1 . . Grunt 14 | . 4 2 5 3 . Sentry 5 | . . . 5 . . Demolisher 2 | . . . . 2 . Zionite 2 | . . . . . 2 Assembled 9 | . . . . 5 4 Thug 1 | . . . 1 . . Best Kill Streak 5 | . 2 2 5 3 3 Combat Bots Only 4 | . 2 2 4 3 3 Max Kills in Single Turn 2 | . 1 2 1 1 1 Gunslinging . | . . . . . . Exploded 1 | . . 1 . . 1 Melee 1 | . . . . . 1 Uniques/NPCs Destroyed 1 | . . . . . 1 8R-AWN (-9/Exiles) Combat | -11 -10 -10 -9 -9 -9 -------- Run | Scr Mat Min Mat Min Exi Damage Taken 3414 | . 425 403 649 443 1494 Core 508 | . 72 23 25 75 313 Absorbed by Shields . | . . . . . . Redirected to Shielding 175 | . . . 98 . 77 Regen/Repaired (Parts) 114 | . . . 114 . . Core Remaining (%) 81 | 100 . 62 . . . Volleys Fired 158 | . 26 20 51 24 37 Largest 2 | . 2 2 2 2 2 Hottest 93 | . 60 80 93 48 53 Shots Fired 264 | . 49 35 89 48 43 Gun 224 | . 49 34 70 48 23 Cannon 19 | . . . 19 . . Launcher 21 | . . 1 . . 20 Special . | . . . . . . Kinetic 160 | . 26 5 58 48 23 Thermal 57 | . 23 15 19 . . Explosive 21 | . . 1 . . 20 Electromagnetic 26 | . . 14 12 . . Robot Hit Streak 11 | . 8 5 7 11 2 Robot Miss Streak 4 | . 3 4 4 3 3 Penetration Max . | . . . . . . Secondary Targets 2 | . 1 1 . . . Max Gunslinging Chain 1 | . 1 1 . . . Shots Hit Robots 195 | . 34 20 63 33 45 Core Hits 99 | . 12 12 31 21 23 Critical Kills 2 | . . . . 2 . Critical Parts Destroyed . | . . . . . . Critical Strikes 5 | . . . . 2 3 Destroy 2 | . . . . 2 . Sever 3 | . . . . . 3 Melee Attacks 38 | . . . . . 38 Impact . | . . . . . . Slashing 37 | . . . . . 37 Piercing . | . . . . . . Sneak Attacks . | . . . . . . Combat Hostiles . | . . . . . . Follow-up Attacks . | . . . . . . Damage Inflicted 4833 | . 315 346 1248 628 2296 Guns 2237 | . 315 263 911 609 139 Cannons 228 | . . . 228 . . Explosions 810 | . . 60 109 . 641 Melee 1516 | . . . . . 1516 Ramming 42 | . . 23 . 19 . Kinetic 1784 | . 161 73 802 609 139 Thermal 609 | . 154 118 337 . . Explosive 701 | . . 60 . . 641 Electromagnetic 181 | . . 72 109 . . Impact . | . . . . . . Slashing 1516 | . . . . . 1516 Piercing . | . . . . . . Highest Corruption 4 | . . . . . 4 Average Corruption 2 | . . . . . 2 Corruption Purged . | . . . . . . Corruption Blocked . | . . . . . . Overload Shots . | . . . . . . Overflow Damage 35 | . . 8 14 . 13 Projectiles . | . . . . . . Explosions 32 | . . 8 14 . 10 Melee 3 | . . . . . 3 Knockbacks 1 | . . . . 1 . Impact 1 | . . . . 1 . Kinetic . | . . . . . . Secondary . | . . . . . . Self-Inflicted Damage 202 | . . 40 100 . 62 Shots 4 | . . 1 1 . 2 Rammed 9 | . . 4 . 5 . Targets Rammed 10 | . . 5 . 5 . Kicked . | . . . . . . Crushed 1 | . . 1 . . . Highest Temperature 325 | . 325 46 69 3 . Average Temperature 101 | . 168 29 23 3 . Received Heat Transfer 693 | . 255 213 159 66 . Effects 1 | . 1 . . . . Energy Bleed 1 | . 1 . . . . Siege Activations . | . . . . . . Robots Corrupted . | . . . . . . Combat Hostiles . | . . . . . . Parts Fried . | . . . . . . Impact Corruptions . | . . . . . . Robots Melted . | . . . . . . Combat Hostiles . | . . . . . . Parts Melted 2 | . 1 1 . . . Heat Transferred 1082 | . 350 275 457 . . Parts Sabotaged . | . . . . . . Parts Stolen . | . . . . . . Parts Stripped . | . . . . . . Power Chain Reactions . | . . . . . . Missiles Intercepted . | . . . . . . Alert | -11 -10 -10 -9 -9 -9 ------- Run | Scr Mat Min Mat Min Exi Peak Influence 198 | . 130 136 198 131 . Initial 50 | . . 50 3 16 . Average 43 | . 82 51 82 10 . Maximum Alert Level . | . . . . . . Low Security (%) 100 | . 100 100 100 100 . Level 1 . | . . . . . . Level 2 . | . . . . . . Level 3 . | . . . . . . Level 4 . | . . . . . . Level 5 . | . . . . . . High Security . | . . . . . . Max Security . | . . . . . . Squads Dispatched 1 | . . . 1 . . Investigation . | . . . . . . Extermination . | . . . . . . Reinforcement 1 | . . . 1 . . Assault . | . . . . . . Garrison . | . . . . . . Intercept . | . . . . . . Searches Triggered . | . . . . . . Construction Impeded . | . . . . . . Haulers Reinforced . | . . . . . . Active Scanning Responses . | . . . . . . Cargo Convoy Interrupts . | . . . . . . Stealth | -11 -10 -10 -9 -9 -9 --------- Run | Scr Mat Min Mat Min Exi Distress Signals 4 | . . . 4 . . Communications Jammed . | . . . . . . Distress Signals . | . . . . . . Times Spotted 79 | . 8 7 24 12 28 Peak Tracking Total 9 | . 5 3 5 3 9 Tactical Retreats 5 | . . 1 1 1 2 Traps | -11 -10 -10 -9 -9 -9 ------- Run | Scr Mat Min Mat Min Exi Traps Triggered 1 | . . 1 . . . Indirectly . | . . . . . . Trap Hack Attempts . | . . . . . . Triggered . | . . . . . . Disarmed . | . . . . . . Reprogrammed . | . . . . . . Reused . | . . . . . . Traps Extracted . | . . . . . . Installed . | . . . . . . Triggered . | . . . . . . Exploded 3 | . . . . . 3 Machines | -11 -10 -10 -9 -9 -9 ---------- Run | Scr Mat Min Mat Min Exi Machines Disabled 12 | . . . 2 . 10 Max in Single Turn 2 | . . . 2 . 1 Machines Sabotaged . | . . . . . . Garrisons Compromised . | . . . . . . Overloaded Fab Kills . | . . . . . . Hacking | -11 -10 -10 -9 -9 -9 --------- Run | Scr Mat Min Mat Min Exi Machines Accessed 8 | . 3 1 2 . 2 Terminals 4 | . 3 . 1 . . Fabricators . | . . . . . . Repair Stations 1 | . . . 1 . . Recycling Units . | . . . . . . Scanalyzers . | . . . . . . Garrison Access . | . . . . . . Total Hacks 13 | . 5 1 5 . 2 Successful 10 | . 4 1 3 . 2 Failed 3 | . 1 . 2 . . Catastrophic 1 | . . . 1 . . Database Lockouts . | . . . . . . Manual 6 | . 3 . 2 . 1 Terminals 7 | . 5 . 2 . . Fabricators . | . . . . . . Repair Stations 3 | . . . 3 . . Recycling Units . | . . . . . . Scanalyzers . | . . . . . . Garrison Access . | . . . . . . Terminal Hacks 6 | . 2 1 1 . 2 Record 1 | . . . . . 1 Robot Analysis 1 | . 1 . . . . Open Door 1 | . . 1 . . . Branch Access Points 2 | . 1 . 1 . . EX-Prototype ID Bank 1 | . . . . . 1 Fabricator Hacks . | . . . . . . Repair Station Hacks 2 | . . . 2 . . Scan Component 1 | . . . 1 . . Repair 1 | . . . 1 . . Recycling Unit Hacks . | . . . . . . Scanalyzer . | . . . . . . Garrison Access Hacks . | . . . . . . Unauthorized Hacks 2 | . 2 . . . . Terminals 2 | . 2 . . . . Assimilate 1 | . 1 . . . . Botnet 1 | . 1 . . . . Fabricators . | . . . . . . Repair Stations . | . . . . . . Recycling Units . | . . . . . . Scanalyzers . | . . . . . . Garrison Access . | . . . . . . Data Cores Recovered . | . . . . . . Used . | . . . . . . Hacking Detections 3 | . 2 . 1 . . Full Trace Events . | . . . . . . Feedback Events . | . . . . . . Feedback Blocked . | . . . . . . Robot Schematics Acquired . | . . . . . . Robots Built . | . . . . . . Authchips . | . . . . . . Time . | . . . . . . Total Robot Build Rating . | . . . . . . Part Schematics Acquired . | . . . . . . Parts Built . | . . . . . . Authchips . | . . . . . . Time . | . . . . . . Total Part Build Rating . | . . . . . . Parts Repaired 1 | . . . 1 . . Time 26 | . . . 26 . . Parts Recycled . | . . . . . . Recycled Matter . | . . . . . . Retrieved Matter . | . . . . . . Retrieved Components . | . . . . . . Parts Scanalyzed . | . . . . . . Part Schematics Acquired . | . . . . . . Parts Damaged . | . . . . . . Bothacking | -11 -10 -10 -9 -9 -9 ------------ Run | Scr Mat Min Mat Min Exi Used RIF Installer . | . . . . . . Robots Hacked 1 | . . . . . 1 Non-combat . | . . . . . . Combat 1 | . . . . . 1 Robot Hacks Applied 1 | . . . . . 1 parse_system 1 | . . . . . 1 Relay Couplers Released . | . . . . . . Fabnet Peak Effective % . | . . . . . . Robots Rewired . | . . . . . . Allies Hacked . | . . . . . . Hacks Repelled . | . . . . . . Allies | -11 -10 -10 -9 -9 -9 -------- Run | Scr Mat Min Mat Min Exi Total Allies 3 | . 1 2 . . . Largest Group 2 | . 1 2 2 . . Highest-Rated Group 41 | . 10 41 41 . . Highest-Rated Ally 31 | . 10 31 31 . . Total Orders . | . . . . . . Ally Attacks 14 | . . 4 10 . . Total Damage 232 | . . 85 147 . . Kills 4 | . . 2 2 . . Allies Corrupted . | . . . . . . Allies Melted . | . . . . . . Intel | -11 -10 -10 -9 -9 -9 ------- Run | Scr Mat Min Mat Min Exi Robot Analysis Total 1 | . 1 . . . . Derelict Logs Recovered 3 | . . 1 . 2 . Drone Launches . | . . . . . . Drone Recoveries . | . . . . . . Exploration | -11 -10 -10 -9 -9 -9 ------------- Run | Scr Mat Min Mat Min Exi Turns Passed 6610 | . 398 1113 1254 2258 1587 Spaces Moved 2556 | 1 208 642 348 659 698 Core . | . . . . . . Treads 1904 | . 140 642 348 659 115 Legs 652 | 1 68 . . . 583 Wheels . | . . . . . . Hover . | . . . . . . Flight . | . . . . . . Fastest Speed 120 | 120 120 160 160 320 125 Average Speed 229 | 120 149 160 301 320 194 Slowest Speed 330 | 120 190 160 320 320 330 Overloaded Moves 3 | . . . . . 3 Propulsion Burnouts . | . . . . . . Robots Hopped . | . . . . . . Cave-ins Triggered . | . . . . . . Exploration Rate (%) 56 | 1 37 98 37 95 73 Regions Visited 5 Branch Regions 3 Pre-discovered Areas 2 | . . . . 1 1 Known Exits Taken 2 | . 1 . 1 . . Unknown Exits Taken 3 | 1 . 1 . 1 . Scrap Searched 2 | . . 1 . 1 . Spaces Dug 10 | . . . . . 10 Terrain Destroyed 81 | . . 10 17 . 54 Melee . | . . . . . . Projectile . | . . . . . . AOE 81 | . . 10 17 . 54 Terrain Rammed . | . . . . . . Walls Destroyed . | . . . . . . Machines Disabled . | . . . . . . Actions | -11 -10 -10 -9 -9 -9 --------- Run | Scr Mat Min Mat Min Exi Total 3012 | . 252 694 468 751 847 Wait 130 | . . 1 29 58 42 Move 2551 | . 207 641 347 658 698 Hop . | . . . . . . Pick Up 45 | . 6 12 19 1 7 Fast Attach 11 | . 2 2 4 1 2 Attach 12 | . 1 2 4 . 5 Detach 1 | . . 1 . . . Swap 20 | . 5 2 4 2 7 Drop 36 | . 5 8 10 2 11 Fire 158 | . 26 20 51 24 37 Melee 38 | . . . . . 38 Ram . | . . . . . . Kick . | . . . . . . Crush 10 | . . 5 . 5 . Escape Stasis . | . . . . . . Rewire . | . . . . . . Trap . | . . . . . . Miscellaneous . | . . . . . . Route ------- -11/Scrapyard -10/Materials (discovered 2 exits: *Min x2) -10/Mines (discovered 2 exits: *Mat x2) -9/Materials (discovered 3 exits: [*Mat] / *Min x2) -9/Mines (discovered 3 exits: [*Mat] / *Exi / [*Zio]) -9/Exiles History --------- Turn | Location | Event 1 | -11/Scrapyard | Discovered new exit (range 0) 1 | -11/Scrapyard | Entered Materials 54 | -10/Materials | Identified exit to Mines 301 | -10/Materials | Build established: Mutant 399 | -10/Materials | Entered Mines 399 | -10/Mines | Accompanied by 1 ally 727 | -10/Mines | Found a damaged Exp. Sensor Array with a note attached 730 | -10/Mines | Found Prototype Device 840 | -10/Mines | Discovered new exit (range 14) 913 | -10/Mines | Discovered new exit (range 6) 920 | -10/Mines | Learned Materials stockpile data 961 | -10/Mines | Met a Derelict who couldn't figure out how to use a Trap Extractor 1512 | -10/Mines | Entered Materials 1512 | -9/Materials | Accompanied by 2 allies 1512 | -9/Materials | Evolved 2 slots: Utility x2 1517 | -9/Materials | Led the pair of lost Derelicts to an unsafe place 1689 | -9/Materials | Repaired Lgt. Treads 2213 | -9/Materials | Discovered new exit (range 11) 2480 | -9/Materials | Identified exit to Mines 2766 | -9/Materials | Entered Mines 2769 | -9/Mines | Met a Derelict bent on vengeance 2773 | -9/Mines | Received a Rocket Launcher from a helpful Derelict 2933 | -9/Mines | Learned Materials non-interactive machine intel 2975 | -9/Mines | Discovered new exit (range 9) 3049 | -9/Mines | Assembled infested the area 3054 | -9/Mines | Assisted by a Guerilla fighting off Assembled 3763 | -9/Mines | Deemed a non-threat by the Exiles lab entrance 4307 | -9/Mines | Learned location of Storage (-7) 4513 | -9/Mines | A Derelict revealed a hidden shortcut to a safe place 5011 | -9/Mines | Discovered new exit (range 5) 5024 | -9/Mines | Entered Exiles 5101 | -9/Exiles | Met 8R-AWN 5152 | -9/Exiles | Met EX-HEX 5245 | -9/Exiles | Met EX-BIN 5300 | -9/Exiles | Aligned with FarCom system 5303 | -9/Exiles | Given EX-Vault access code 5376 | -9/Exiles | Opened EX-Vault 5393 | -9/Exiles | Found Potential Leg 5398 | -9/Exiles | Found Potential Leg 5401 | -9/Exiles | Found Longsword +1 5406 | -9/Exiles | Found Chronowheel 5443 | -9/Exiles | Warned to stay clear of 0b10 Research branches 5499 | -9/Exiles | Met EX-DEC 5506 | -9/Exiles | Learned location of Zion (-7) 6142 | -9/Exiles | Attacked by the Exiles 6276 | -9/Exiles | Core integrity fell below 50% 6303 | -9/Exiles | Lost 3 parts (3u) 6318 | -9/Exiles | Destroyed 8R-AWN 6476 | -9/Exiles | Found 8R-AWN's Boregun 6603 | -9/Exiles | Core integrity fell below 20% 6611 | -9/Exiles | Destroyed by EX-DEC with AWS/EX-DEC Last Messages --------------- 06441_ The unstable cave ceiling collapses. 06446_ Acquired 9 matter. 06453_ The unstable cave ceiling collapses. 06476_ Acquired 8R-AWN's Boregun. 06484_ Extracted 162 matter. 06591_ J5-HVA destroyed. 06591_ HV Slug penetrates Machine. 06591_ Machine disabled. 06594_ HV Slug penetrates Machine. 06597_ AM-PHS destroyed. 06597_ HV Slug penetrates Testing Chamber Shield. 06597_ HV Slug penetrates Testing Apparatus. 06603_ HV Slug penetrates Testing Chamber Shield. 06606_ Hvy. Ion Engine destroyed. 06606_ HV Slug penetrates Machine. 06606_ Machine disabled. 06608_ Hardlight Generator destroyed. 06609_ HV Slug penetrates Wall. 06609_ HV Slug penetrates Machine. 06609_ Machine disabled. Map ----- +----------------------------------------------------+ | ???????????## ""#???????????##"" | | ???????????# ########??####"""" | | ???????????# " ## ####""" | | ???????????##"" """" | | ????????????##" | | ?????????????#"" | | ?????????????## | | ??????????????#" " "" | | ??????????????#" ""## ##""" " " | | ??????????????#"" ""#### ######""" | | ??????????????#" """"##??# #????###"" | | ??????????????#""" z """#??## ####???### | | ??????????????## ""##??#! "!#?????? | | ???????????????#"" """##???#" !#?????? | | ???????????????##""" ##????#" "#?????? | | ????????????????##"""" ##?????#!!""!"#?????? | | ?????????????????### #??????########?????? | | ???????????????????##### ##???????????????????? | | ???????????????????????## #????????????????????? | | ????????????????????????# #????????????????????? | | ????????????????????????# #????????????????????? | | ????????????????????????# #????????????????????? | | ????????????????????????# #????????????????????? | | ????????????????????????# #????????????????????? | | ????????????????????????# #????????????????????? | | ????????????????????????#@ #????????????????????? | | ????????????????????????# /#????????????????????? | | ????????????????????????# %#????????????????????? | | ????????????????????????#= *#????????????????????? | | ???????????????????????""%* ????????????????????? | | ????????????????????? ???????????????????? | | ??????????????????? ??????????????????? | | ?????????????????? ?????????????????? | | ????????????????? c ????????????????? | | ????????????????? "" ????????????????? | | ????????????????? " "" " " "???????????????? | | ????????????????""?########"""#####??????????????? | | ??????????????????????????? "??????????????????? | | ??????????????????????????? ""??????????????????? | | ???????????????????????????"""???????????????????? | | ?????????????????????????????????????????????????? | | ?????????????????????????????????????????????????? | | ?????????????????????????????????????????????????? | | ?????????????????????????????????????????????????? | | ?????????????????????????????????????????????????? | | ?????????????????????????????????????????????????? | | ?????????????????????????????????????????????????? | | | | | | | +----------------------------------------------------+ Best States ------------- Heat Dissipation 42 Energy Generation 14 Energy Capacity 280 Matter Stores 300 Matter Capacity 300 Sight Range 16 Terrain Scan Density 10 Armor Coverage 300 Resistance: TH 10 Weapon Shielding 66 Evasion (%) 55 Recoil Reduction 2 Item Schematics ----------------- None Robot Schematics ------------------ None Fabricated ------------ Nothing Alien Tech Used ----------------- None Achievements -------------- None Challenges ------------ None Game ------ Seed MasterGravmagPropulsion Manual? 0 Play Time 00:25:01 Cumulative 333.6 hours Start 2022.05.08 @ 14:52:55 End 2022.05.08 @ 21:04:18 Sessions 3 Manual Loads 0 Difficulty Rogue Special Mode None Game No. 369 Rogue 369 Adventurer 0 Explorer 0 Win Type - Total 28 Types 17/3/2/1/2/0/3/0/0 Lore% 87 Gallery% 85 Achievement% 80 Wizard Run 0 Options --------- ASCII 0 Keyboard 0 Movement Arrows Keybinds 0 Fullscreen 2 Font 18/SmallcapsGlow Map View 76x50 Tactical HUD 1 Map Filters NONE Filters NONE Steam 1 RUN: 5152c2c1-8069-4548-9f92-c64e32231b58